[Event "*** SCC Grand Prix: Titled Tuesday Blitz"]
[Site "Chess.com"]
[Date "2020.07.07"]
[Round "3"]
[White "coalescenet"]
[Black "TheCount"]
[Result "1/2-1/2"]
[WhiteElo "2393"]
[BlackElo "2576"]
[TimeControl "180+1"]
[EndTime "10:29:51 PDT"]
[Termination "Game drawn - insufficient material"]

1. d4 {[%clk 0:03:00.9]} 1... Nf6 {[%clk 0:01:59.9]} 2. c4 {[%clk 0:02:44.1]}
2... g6 {[%clk 0:01:59.7]} 3. Nc3 {[%clk 0:02:43.9]} 3... d5 {[%clk 0:02:00.3]}
4. Bg5 {[%clk 0:02:42.4]} 4... Ne4 {[%clk 0:01:59.5]} 5. Bh4 {[%clk 0:02:41.5]}
5... Nxc3 {[%clk 0:01:59.7]} 6. bxc3 {[%clk 0:02:42.3]} 6... dxc4 {[%clk
0:02:00.5]} 7. e3 {[%clk 0:02:42.6]} 7... Be6 {[%clk 0:02:00.3]} 8. Nf3 {[%clk
0:02:43]} 8... Bg7 {[%clk 0:02:00.4]} 9. Nd2 {[%clk 0:02:38.4]} 9... c5 {[%clk
0:01:52.8]} 10. Nxc4 {[%clk 0:02:33.8]} 10... Nc6 {[%clk 0:01:43.8]} 11. Be2
{[%clk 0:02:29.4]} 11... Rc8 {[%clk 0:01:27.5]} 12. Nd2 {[%clk 0:02:20.2]} 12...
cxd4 {[%clk 0:01:25.9]} 13. cxd4 {[%clk 0:02:20.7]} 13... O-O {[%clk 0:01:09.4]}
14. O-O {[%clk 0:02:19.6]} 14... Qa5 {[%clk 0:01:09.1]} 15. Nb3 {[%clk
0:02:12.4]} 15... Qa3 {[%clk 0:01:06.6]} 16. Nc5 {[%clk 0:02:02.2]} 16... Bd5
{[%clk 0:01:01.7]} 17. Qd3 {[%clk 0:01:30.7]} 17... Qxd3 {[%clk 0:00:57]} 18.
Bxd3 {[%clk 0:01:31.3]} 18... e5 {[%clk 0:00:52.1]} 19. Nxb7 {[%clk 0:01:23.1]}
19... Nb4 {[%clk 0:00:48.8]} 20. Nd6 {[%clk 0:01:09]} 20... Nxd3 {[%clk
0:00:48.6]} 21. Nxc8 {[%clk 0:01:01.8]} 21... Rxc8 {[%clk 0:00:49.5]} 22. dxe5
{[%clk 0:00:57.3]} 22... Bxe5 {[%clk 0:00:49.7]} 23. Rad1 {[%clk 0:00:53.9]}
23... Bc4 {[%clk 0:00:48.9]} 24. f4 {[%clk 0:00:46.4]} 24... Bc3 {[%clk
0:00:39.7]} 25. Rf3 {[%clk 0:00:40.9]} 25... f5 {[%clk 0:00:39]} 26. Bg5 {[%clk
0:00:36]} 26... Kf7 {[%clk 0:00:36.2]} 27. h3 {[%clk 0:00:36.4]} 27... Ke6
{[%clk 0:00:35.9]} 28. g4 {[%clk 0:00:36.7]} 28... Kd5 {[%clk 0:00:34.7]} 29.
gxf5 {[%clk 0:00:32.3]} 29... gxf5 {[%clk 0:00:35.6]} 30. h4 {[%clk 0:00:32]}
30... Ke4 {[%clk 0:00:35.5]} 31. Rg3 {[%clk 0:00:32.1]} 31... Bxa2 {[%clk
0:00:21.7]} 32. Bh6 {[%clk 0:00:30.8]} 32... Rg8 {[%clk 0:00:19.4]} 33. Rxg8
{[%clk 0:00:23.8]} 33... Bxg8 {[%clk 0:00:20.3]} 34. Rb1 {[%clk 0:00:19.9]}
34... Bb2 {[%clk 0:00:19.7]} 35. Kf1 {[%clk 0:00:19.3]} 35... a5 {[%clk
0:00:19.1]} 36. Ke2 {[%clk 0:00:18.8]} 36... a4 {[%clk 0:00:19.4]} 37. Rg1
{[%clk 0:00:13]} 37... Bc4 {[%clk 0:00:18.1]} 38. Bg7 {[%clk 0:00:11.2]} 38...
a3 {[%clk 0:00:16.5]} 39. Kd2 {[%clk 0:00:06.4]} 39... a2 {[%clk 0:00:08.7]} 40.
Bxb2 {[%clk 0:00:05.3]} 40... Nxb2 {[%clk 0:00:09.6]} 41. Kc3 {[%clk 0:00:04.8]}
41... Bd3 {[%clk 0:00:04.2]} 42. Kxb2 {[%clk 0:00:04.3]} 42... Bb1 {[%clk
0:00:04.6]} 43. Ka1 {[%clk 0:00:03.5]} 43... Kxe3 {[%clk 0:00:04.2]} 44. Rg7
{[%clk 0:00:03.3]} 44... h5 {[%clk 0:00:04.3]} 45. Rg5 {[%clk 0:00:03.2]} 45...
Kxf4 {[%clk 0:00:05.2]} 46. Rxh5 {[%clk 0:00:03.8]} 46... Kg4 {[%clk 0:00:05.9]}
47. Rh8 {[%clk 0:00:04.5]} 47... f4 {[%clk 0:00:05.9]} 48. h5 {[%clk 0:00:04.9]}
48... f3 {[%clk 0:00:06.4]} 49. h6 {[%clk 0:00:05.4]} 49... Kg5 {[%clk
0:00:05.5]} 50. Rf8 {[%clk 0:00:05.2]} 50... Be4 {[%clk 0:00:04.9]} 51. Rxf3
{[%clk 0:00:03.7]} 51... Kxh6 {[%clk 0:00:04.2]} 52. Rf4 {[%clk 0:00:03.5]}
52... Bb1 {[%clk 0:00:04]} 53. Rf6+ {[%clk 0:00:03]} 53... Kg5 {[%clk
0:00:04.9]} 54. Rb6 {[%clk 0:00:03.4]} 54... Kf5 {[%clk 0:00:05.4]} 55. Ra6
{[%clk 0:00:03.9]} 55... Ke5 {[%clk 0:00:05.1]} 56. Ra5+ {[%clk 0:00:04.8]}
56... Kd4 {[%clk 0:00:04.7]} 57. Ra4+ {[%clk 0:00:05.7]} 57... Kc3 {[%clk
0:00:04.9]} 58. Rxa2 {[%clk 0:00:06.4]} 58... Bxa2 {[%clk 0:00:05]} 1/2-1/2

[Event "*** SCC Grand Prix: Titled Tuesday Blitz"]
[Site "Chess.com"]
[Date "2020.07.07"]
[Round "3"]
[White "Usurpov"]
[Black "SGchess01"]
[Result "0-1"]
[WhiteElo "2410"]
[BlackElo "2616"]
[TimeControl "180+1"]
[EndTime "10:29:53 PDT"]
[Termination "SGchess01 won by resignation"]

1. e4 {[%clk 0:03:00.9]} 1... Nf6 {[%clk 0:02:58.9]} 2. Nc3 {[%clk 0:03:00.4]}
2... d6 {[%clk 0:02:58.1]} 3. d4 {[%clk 0:02:57]} 3... e5 {[%clk 0:02:57.6]} 4.
Nf3 {[%clk 0:02:55.5]} 4... Nbd7 {[%clk 0:02:57]} 5. Bc4 {[%clk 0:02:52.9]} 5...
Be7 {[%clk 0:02:57.2]} 6. O-O {[%clk 0:02:47.7]} 6... O-O {[%clk 0:02:57]} 7.
Re1 {[%clk 0:02:45.7]} 7... c6 {[%clk 0:02:56.8]} 8. a4 {[%clk 0:02:44.9]} 8...
a5 {[%clk 0:02:56.9]} 9. h3 {[%clk 0:02:30.1]} 9... Nb6 {[%clk 0:02:56.4]} 10.
Ba2 {[%clk 0:02:24.2]} 10... Nfd7 {[%clk 0:02:55.6]} 11. Be3 {[%clk 0:02:18.5]}
11... exd4 {[%clk 0:02:54.2]} 12. Bxd4 {[%clk 0:02:04.1]} 12... Nc5 {[%clk
0:02:53.2]} 13. Qd2 {[%clk 0:01:43]} 13... Nbxa4 {[%clk 0:02:45.9]} 14. Nxa4
{[%clk 0:01:40.8]} 14... Nxa4 {[%clk 0:02:46.8]} 15. e5 {[%clk 0:00:32.5]} 15...
d5 {[%clk 0:02:42.2]} 16. Bxd5 {[%clk 0:00:26.3]} 16... Qxd5 {[%clk 0:02:40.2]}
17. Rxa4 {[%clk 0:00:24.9]} 17... Bxh3 {[%clk 0:02:35.3]} 18. c4 {[%clk
0:00:23]} 18... Qd7 {[%clk 0:02:33.4]} 19. gxh3 {[%clk 0:00:22.4]} 19... c5
{[%clk 0:02:25.9]} 20. Bxc5 {[%clk 0:00:18.2]} 20... Qxd2 {[%clk 0:02:14.9]} 21.
Nxd2 {[%clk 0:00:19.1]} 21... Bxc5 {[%clk 0:02:15.5]} 22. Rea1 {[%clk
0:00:18.7]} 22... b6 {[%clk 0:02:10.9]} 23. Ne4 {[%clk 0:00:18.8]} 23... Bd4
{[%clk 0:02:10.9]} 24. R1a2 {[%clk 0:00:16.4]} 24... Bxe5 {[%clk 0:02:10.3]} 25.
c5 {[%clk 0:00:16.1]} 25... Bc7 {[%clk 0:02:00.8]} 26. cxb6 {[%clk 0:00:16.4]}
26... Bxb6 {[%clk 0:02:01.7]} 27. b4 {[%clk 0:00:16.9]} 27... Rae8 {[%clk
0:01:57]} 28. bxa5 {[%clk 0:00:16.2]} 28... Bxa5 {[%clk 0:01:57.4]} 29. Rxa5
{[%clk 0:00:16]} 29... Rxe4 {[%clk 0:01:57]} 30. Kg2 {[%clk 0:00:16.9]} 30...
Ree8 {[%clk 0:01:53.9]} 31. Ra7 {[%clk 0:00:16.8]} 31... g6 {[%clk 0:01:52.9]}
32. Rb2 {[%clk 0:00:17]} 32... Kg7 {[%clk 0:01:53.4]} 33. Rbb7 {[%clk
0:00:16.9]} 33... Re5 {[%clk 0:01:53]} 34. Kg3 {[%clk 0:00:16.7]} 34... Rf5
{[%clk 0:01:53.5]} 35. Rb3 {[%clk 0:00:16.2]} 35... Rc8 {[%clk 0:01:53.7]} 36.
Rf3 {[%clk 0:00:16.2]} 36... Rxf3+ {[%clk 0:01:50.8]} 37. Kxf3 {[%clk
0:00:17.1]} 37... Rc3+ {[%clk 0:01:51]} 38. Kg2 {[%clk 0:00:17.6]} 38... g5
{[%clk 0:01:51.6]} 39. Rb7 {[%clk 0:00:17.8]} 39... Kg6 {[%clk 0:01:51.6]} 40.
Ra7 {[%clk 0:00:18.2]} 40... h6 {[%clk 0:01:50.7]} 41. Rb7 {[%clk 0:00:18.5]}
41... f6 {[%clk 0:01:51.3]} 42. Ra7 {[%clk 0:00:18.8]} 42... h5 {[%clk
0:01:50.7]} 43. Ra6 {[%clk 0:00:19]} 43... Rc5 {[%clk 0:01:49.8]} 44. Rb6 {[%clk
0:00:18.8]} 44... Kf5 {[%clk 0:01:50.2]} 45. Ra6 {[%clk 0:00:18.9]} 45... Ke5
{[%clk 0:01:50]} 46. Rb6 {[%clk 0:00:18.9]} 46... Rd5 {[%clk 0:01:49.8]} 47. Ra6
{[%clk 0:00:18.7]} 47... f5 {[%clk 0:01:49.8]} 48. Rb6 {[%clk 0:00:12.9]} 48...
h4 {[%clk 0:01:49.6]} 49. Ra6 {[%clk 0:00:12.1]} 49... Rd4 {[%clk 0:01:49.9]}
50. Rb6 {[%clk 0:00:11.7]} 50... Kf4 {[%clk 0:01:50.1]} 51. Rb5 {[%clk
0:00:10.3]} 51... Re4 {[%clk 0:01:50]} 52. Ra5 {[%clk 0:00:10.1]} 52... g4
{[%clk 0:01:48.5]} 53. hxg4 {[%clk 0:00:09.4]} 53... fxg4 {[%clk 0:01:49.4]} 54.
Rh5 {[%clk 0:00:08.7]} 54... h3+ {[%clk 0:01:49.3]} 55. Kf1 {[%clk 0:00:07.6]}
55... Kf3 {[%clk 0:01:48.2]} 56. Rf5+ {[%clk 0:00:07.4]} 56... Rf4 {[%clk
0:01:48.3]} 57. Ra5 {[%clk 0:00:07.2]} 57... Rb4 {[%clk 0:01:33.6]} 58. Ra3+
{[%clk 0:00:06.1]} 58... Kf4 {[%clk 0:01:34.1]} 59. Kg1 {[%clk 0:00:06.2]} 59...
Rb1+ {[%clk 0:01:30]} 60. Kh2 {[%clk 0:00:06.3]} 60... Rf1 {[%clk 0:01:30.1]}
61. Ra4+ {[%clk 0:00:06.4]} 61... Kg5 {[%clk 0:01:30.5]} 62. Ra5+ {[%clk
0:00:04.8]} 62... Kh4 {[%clk 0:01:29.7]} 63. Ra2 {[%clk 0:00:05]} 63... Rc1
{[%clk 0:01:25.4]} 64. Re2 {[%clk 0:00:04.3]} 64... Rc3 {[%clk 0:01:25.4]} 65.
Rd2 {[%clk 0:00:04.3]} 65... Kg5 {[%clk 0:01:24.4]} 66. Rd5+ {[%clk 0:00:03.1]}
66... Kf4 {[%clk 0:01:24.9]} 67. Rd8 {[%clk 0:00:03.2]} 67... Rc5 {[%clk
0:01:21.6]} 68. Rf8+ {[%clk 0:00:02.9]} 68... Ke4 {[%clk 0:01:22]} 69. Rg8
{[%clk 0:00:01.7]} 69... Kf3 {[%clk 0:01:21]} 70. Rf8+ {[%clk 0:00:02.1]} 70...
Ke4 {[%clk 0:01:21.2]} 71. Kg3 {[%clk 0:00:02.5]} 71... Rh5 {[%clk 0:01:19.8]}
72. Rf4+ {[%clk 0:00:02.5]} 72... Kd3 {[%clk 0:01:18.8]} 73. Ra4 {[%clk
0:00:02.1]} 73... h2 {[%clk 0:01:18.7]} 74. Ra3+ {[%clk 0:00:02.7]} 74... Ke4
{[%clk 0:01:18.1]} 75. Ra4+ {[%clk 0:00:03.3]} 75... Kd3 {[%clk 0:01:16.9]} 76.
Ra3+ {[%clk 0:00:03.7]} 76... Kc2 {[%clk 0:01:16.3]} 77. Ra1 {[%clk 0:00:03.5]}
77... h1=Q {[%clk 0:01:16.4]} 78. Rxh1 {[%clk 0:00:04.2]} 78... Rxh1 {[%clk
0:01:16.8]} 79. Kxg4 {[%clk 0:00:05.1]} 79... Kd3 {[%clk 0:01:17.4]} 80. f4
{[%clk 0:00:05.4]} 80... Ke4 {[%clk 0:01:18]} 81. Kg5 {[%clk 0:00:05.8]} 81...
Rg1+ {[%clk 0:01:18.2]} 0-1

[Event "*** SCC Grand Prix: Titled Tuesday Blitz"]
[Site "Chess.com"]
[Date "2020.07.07"]
[Round "3"]
[White "Danfii"]
[Black "S-Fazulyanov"]
[Result "0-1"]
[WhiteElo "2355"]
[BlackElo "2544"]
[TimeControl "180+1"]
[EndTime "10:29:53 PDT"]
[Termination "S-Fazulyanov won by resignation"]

1. e4 {[%clk 0:03:00.9]} 1... c5 {[%clk 0:03:00]} 2. Nf3 {[%clk 0:02:59.6]} 2...
Nc6 {[%clk 0:03:00.3]} 3. d4 {[%clk 0:02:59.4]} 3... cxd4 {[%clk 0:03:00.7]} 4.
Nxd4 {[%clk 0:03:00.3]} 4... g6 {[%clk 0:03:01.3]} 5. Nc3 {[%clk 0:02:59.9]}
5... Bg7 {[%clk 0:03:01.3]} 6. Be3 {[%clk 0:03:00.2]} 6... Nf6 {[%clk
0:03:01.4]} 7. Bc4 {[%clk 0:02:59.8]} 7... Na5 {[%clk 0:03:01.3]} 8. Be2 {[%clk
0:02:55.3]} 8... d5 {[%clk 0:02:51.5]} 9. exd5 {[%clk 0:02:49.8]} 9... Nxd5
{[%clk 0:02:52.4]} 10. Nxd5 {[%clk 0:02:50.3]} 10... Qxd5 {[%clk 0:02:52.6]} 11.
Bf3 {[%clk 0:02:48.5]} 11... Qd8 {[%clk 0:02:51.8]} 12. O-O {[%clk 0:02:48]}
12... O-O {[%clk 0:02:51.4]} 13. c3 {[%clk 0:02:26.9]} 13... a6 {[%clk
0:02:50.8]} 14. a4 {[%clk 0:02:25.7]} 14... Qc7 {[%clk 0:02:49.9]} 15. Qe2
{[%clk 0:02:09.1]} 15... e5 {[%clk 0:02:44.6]} 16. Nc2 {[%clk 0:02:06.4]} 16...
Be6 {[%clk 0:02:37.3]} 17. Nb4 {[%clk 0:01:59.5]} 17... Bc4 {[%clk 0:02:27]} 18.
Nd5 {[%clk 0:01:41.5]} 18... Qd6 {[%clk 0:02:17.4]} 19. Qd2 {[%clk 0:01:34.1]}
19... Nb3 {[%clk 0:02:16.6]} 20. Qc2 {[%clk 0:01:28.4]} 20... Nxa1 {[%clk
0:02:14.1]} 21. Rxa1 {[%clk 0:01:28.1]} 21... Bxd5 {[%clk 0:02:13.2]} 22. Rd1
{[%clk 0:01:27.3]} 22... Rfd8 {[%clk 0:02:00.9]} 23. Bxd5 {[%clk 0:01:23.8]}
23... Kh8 {[%clk 0:01:56.8]} 24. a5 {[%clk 0:01:17.2]} 24... Rd7 {[%clk
0:01:53.5]} 25. c4 {[%clk 0:01:14]} 25... Rc8 {[%clk 0:01:40]} 26. Qa4 {[%clk
0:01:05.3]} 26... e4 {[%clk 0:01:08.6]} 27. Bb6 {[%clk 0:00:39.5]} 27... Bxb2
{[%clk 0:00:50.4]} 28. c5 {[%clk 0:00:33.9]} 28... Qe7 {[%clk 0:00:48.3]} 29.
Qb3 {[%clk 0:00:28.1]} 29... Bg7 {[%clk 0:00:43.2]} 30. Re1 {[%clk 0:00:26.6]}
30... f5 {[%clk 0:00:28.1]} 31. Be6 {[%clk 0:00:26.5]} 31... Rd3 {[%clk
0:00:26.1]} 32. Qc4 {[%clk 0:00:21.8]} 32... Re8 {[%clk 0:00:21.3]} 33. Bd5
{[%clk 0:00:20]} 33... Rd4 {[%clk 0:00:16.9]} 34. Qa2 {[%clk 0:00:18.2]} 34...
Qe5 {[%clk 0:00:17.4]} 35. Bb3 {[%clk 0:00:17.1]} 35... Rd3 {[%clk 0:00:17.1]}
36. Bc4 {[%clk 0:00:16.5]} 36... Rc3 {[%clk 0:00:16.8]} 37. c6 {[%clk
0:00:13.2]} 37... bxc6 {[%clk 0:00:16.2]} 38. Bxa6 {[%clk 0:00:13.8]} 38... Qd5
{[%clk 0:00:15.4]} 39. Qxd5 {[%clk 0:00:11.8]} 39... cxd5 {[%clk 0:00:16.3]} 40.
Bb5 {[%clk 0:00:12.3]} 40... Ra8 {[%clk 0:00:16.7]} 41. Bd7 {[%clk 0:00:08.2]}
41... d4 {[%clk 0:00:16.1]} 42. Be6 {[%clk 0:00:08.6]} 42... d3 {[%clk
0:00:16.3]} 43. Bd5 {[%clk 0:00:09]} 43... Ra6 {[%clk 0:00:16.7]} 44. Rd1 {[%clk
0:00:06.6]} 44... Ra3 {[%clk 0:00:16.1]} 45. g3 {[%clk 0:00:06.3]} 45... h6
{[%clk 0:00:15.7]} 46. Bc4 {[%clk 0:00:06.2]} 46... R6xa5 {[%clk 0:00:16.5]} 47.
Bxa5 {[%clk 0:00:07.1]} 47... Rxa5 {[%clk 0:00:17.2]} 48. g4 {[%clk 0:00:06.8]}
48... Kh7 {[%clk 0:00:17.1]} 49. gxf5 {[%clk 0:00:06.4]} 49... gxf5 {[%clk
0:00:18]} 50. f3 {[%clk 0:00:07.3]} 50... Kg6 {[%clk 0:00:18.9]} 51. fxe4 {[%clk
0:00:07.6]} 51... fxe4 {[%clk 0:00:19.8]} 52. Kf2 {[%clk 0:00:08.1]} 52... Kf5
{[%clk 0:00:19.6]} 53. Ke3 {[%clk 0:00:07.8]} 53... Ke5 {[%clk 0:00:19.5]} 54.
Rg1 {[%clk 0:00:05.8]} 54... Bf6 {[%clk 0:00:19.5]} 55. Rf1 {[%clk 0:00:06.1]}
55... Bg5+ {[%clk 0:00:19.9]} 0-1

[Event "*** SCC Grand Prix: Titled Tuesday Blitz"]
[Site "Chess.com"]
[Date "2020.07.07"]
[Round "3"]
[White "dosto07"]
[Black "Th3_Hound"]
[Result "0-1"]
[WhiteElo "2200"]
[BlackElo "2524"]
[TimeControl "180+1"]
[EndTime "10:29:53 PDT"]
[Termination "Th3_Hound won by checkmate"]

1. e4 {[%clk 0:03:00.9]} 1... e5 {[%clk 0:02:58.7]} 2. Nf3 {[%clk 0:03:00.1]}
2... Nc6 {[%clk 0:02:59.3]} 3. Bb5 {[%clk 0:02:59.1]} 3... a6 {[%clk 0:02:59]}
4. Bxc6 {[%clk 0:02:57.1]} 4... dxc6 {[%clk 0:02:58.8]} 5. O-O {[%clk
0:02:56.8]} 5... f6 {[%clk 0:02:55.9]} 6. d4 {[%clk 0:02:54.1]} 6... exd4 {[%clk
0:02:55.8]} 7. Nxd4 {[%clk 0:02:53.6]} 7... c5 {[%clk 0:02:55.8]} 8. Ne2 {[%clk
0:02:53.1]} 8... Qxd1 {[%clk 0:02:53.2]} 9. Rxd1 {[%clk 0:02:52.8]} 9... Bd7
{[%clk 0:02:52]} 10. Nbc3 {[%clk 0:02:52.2]} 10... O-O-O {[%clk 0:02:51.7]} 11.
Be3 {[%clk 0:02:50.8]} 11... b6 {[%clk 0:02:42.8]} 12. Rd2 {[%clk 0:02:46.8]}
12... Ne7 {[%clk 0:02:40.3]} 13. Rad1 {[%clk 0:02:45.1]} 13... Nc6 {[%clk
0:02:40.7]} 14. Nd5 {[%clk 0:02:31.2]} 14... Be6 {[%clk 0:02:19.3]} 15. Nef4
{[%clk 0:02:18.8]} 15... Bf7 {[%clk 0:02:16.9]} 16. c3 {[%clk 0:02:06.3]} 16...
Re8 {[%clk 0:02:11.3]} 17. f3 {[%clk 0:01:59.6]} 17... Be7 {[%clk 0:01:47.4]}
18. Nxe7+ {[%clk 0:01:53.5]} 18... Rxe7 {[%clk 0:01:48.3]} 19. Nd5 {[%clk
0:01:52.8]} 19... Bxd5 {[%clk 0:01:45.2]} 20. Rxd5 {[%clk 0:01:51.2]} 20... g6
{[%clk 0:01:42.3]} 21. Bf2 {[%clk 0:01:45.1]} 21... Rhe8 {[%clk 0:01:41]} 22.
Bh4 {[%clk 0:01:40.6]} 22... Rf7 {[%clk 0:01:38.6]} 23. g4 {[%clk 0:01:32.2]}
23... c4 {[%clk 0:01:36.4]} 24. Bg3 {[%clk 0:01:26.1]} 24... Rd8 {[%clk
0:01:27.9]} 25. h4 {[%clk 0:01:19.1]} 25... Rdf8 {[%clk 0:01:13.4]} 26. Kg2
{[%clk 0:01:04.6]} 26... f5 {[%clk 0:01:06.3]} 27. gxf5 {[%clk 0:01:00.3]} 27...
gxf5 {[%clk 0:01:06.5]} 28. exf5 {[%clk 0:01:00.1]} 28... Ne7 {[%clk 0:01:03.5]}
29. Rd7 {[%clk 0:00:56.2]} 29... Nxf5 {[%clk 0:01:03.9]} 30. Rxf7 {[%clk
0:00:54.6]} 30... Rxf7 {[%clk 0:01:04.8]} 31. Kf2 {[%clk 0:00:46]} 31... h5
{[%clk 0:01:03]} 32. Rd5 {[%clk 0:00:40.7]} 32... b5 {[%clk 0:00:58.1]} 33. Re5
{[%clk 0:00:38.4]} 33... Kd7 {[%clk 0:00:55.9]} 34. Kg2 {[%clk 0:00:30.9]} 34...
c6 {[%clk 0:00:54]} 35. Bf2 {[%clk 0:00:29.8]} 35... a5 {[%clk 0:00:49.1]} 36.
a3 {[%clk 0:00:29]} 36... a4 {[%clk 0:00:48.6]} 37. Re4 {[%clk 0:00:28.5]} 37...
Ne7 {[%clk 0:00:46.8]} 38. Re5 {[%clk 0:00:26.9]} 38... Nd5 {[%clk 0:00:47.1]}
39. Bg3 {[%clk 0:00:23.6]} 39... Rg7 {[%clk 0:00:46]} 40. Kf2 {[%clk 0:00:22.9]}
40... Rh7 {[%clk 0:00:44.2]} 41. f4 {[%clk 0:00:21.9]} 41... Nf6 {[%clk
0:00:43.2]} 42. Kf3 {[%clk 0:00:21.3]} 42... Re7 {[%clk 0:00:38.2]} 43. f5
{[%clk 0:00:20.4]} 43... Rf7 {[%clk 0:00:32.6]} 44. Bf4 {[%clk 0:00:19.2]} 44...
Nd5 {[%clk 0:00:31.7]} 45. Bg5 {[%clk 0:00:17.1]} 45... Kd6 {[%clk 0:00:31.9]}
46. Bf4 {[%clk 0:00:14.4]} 46... Kd7 {[%clk 0:00:27.7]} 47. Ke4 {[%clk 0:00:12]}
47... Nf6+ {[%clk 0:00:26.9]} 48. Kf3 {[%clk 0:00:11.3]} 48... Ng4 {[%clk
0:00:26.2]} 49. Rc5 {[%clk 0:00:08.6]} 49... Nf6 {[%clk 0:00:25.1]} 50. Bg5
{[%clk 0:00:06.4]} 50... Nd5 {[%clk 0:00:25.3]} 51. Ke4 {[%clk 0:00:04.6]} 51...
Kd6 {[%clk 0:00:25.5]} 52. Rxd5+ {[%clk 0:00:03.1]} 52... cxd5+ {[%clk
0:00:26.4]} 53. Kf4 {[%clk 0:00:03.6]} 53... d4 {[%clk 0:00:22.4]} 54. cxd4
{[%clk 0:00:02.8]} 54... b4 {[%clk 0:00:21]} 55. axb4 {[%clk 0:00:01.4]} 55...
c3 {[%clk 0:00:19.9]} 56. Bh6 {[%clk 0:00:02.3]} 56... cxb2 {[%clk 0:00:19]} 57.
Kg5 {[%clk 0:00:01.9]} 57... b1=Q {[%clk 0:00:18]} 58. Kg6 {[%clk 0:00:02.4]}
58... Qxf5# {[%clk 0:00:18.2]} 0-1

[Event "*** SCC Grand Prix: Titled Tuesday Blitz"]
[Site "Chess.com"]
[Date "2020.07.07"]
[Round "3"]
[White "ChessWarrior7197"]
[Black "Paladin61"]
[Result "1-0"]
[WhiteElo "2881"]
[BlackElo "2636"]
[TimeControl "180+1"]
[EndTime "10:29:57 PDT"]
[Termination "ChessWarrior7197 won on time"]

1. e4 {[%clk 0:03:00.9]} 1... c5 {[%clk 0:02:58.7]} 2. f4 {[%clk 0:03:00.2]}
2... d5 {[%clk 0:02:57.3]} 3. Bb5+ {[%clk 0:02:59]} 3... Bd7 {[%clk 0:02:55.6]}
4. Bxd7+ {[%clk 0:02:59]} 4... Qxd7 {[%clk 0:02:55.7]} 5. d3 {[%clk 0:02:59.5]}
5... Nc6 {[%clk 0:02:54.1]} 6. Nf3 {[%clk 0:02:57.9]} 6... e6 {[%clk 0:02:50.2]}
7. Qe2 {[%clk 0:02:56.7]} 7... Nf6 {[%clk 0:02:47.3]} 8. e5 {[%clk 0:02:56.8]}
8... Ng8 {[%clk 0:02:46.2]} 9. O-O {[%clk 0:02:56.4]} 9... Nh6 {[%clk
0:02:36.7]} 10. c3 {[%clk 0:02:56]} 10... Be7 {[%clk 0:02:36.2]} 11. h3 {[%clk
0:02:43.6]} 11... Nf5 {[%clk 0:02:33.5]} 12. Rd1 {[%clk 0:02:25.8]} 12... Rc8
{[%clk 0:02:16.4]} 13. Nbd2 {[%clk 0:02:24.7]} 13... h5 {[%clk 0:02:10.3]} 14.
Nf1 {[%clk 0:02:22.5]} 14... h4 {[%clk 0:02:09.4]} 15. Bd2 {[%clk 0:02:22.4]}
15... b5 {[%clk 0:01:59.5]} 16. Be1 {[%clk 0:02:21.3]} 16... a5 {[%clk
0:01:57.3]} 17. Ne3 {[%clk 0:02:21.1]} 17... Nxe3 {[%clk 0:01:25.1]} 18. Qxe3
{[%clk 0:02:22]} 18... a4 {[%clk 0:01:22.5]} 19. Rac1 {[%clk 0:02:13.8]} 19...
Kf8 {[%clk 0:01:17.2]} 20. d4 {[%clk 0:01:50.8]} 20... c4 {[%clk 0:01:01.1]} 21.
a3 {[%clk 0:01:46.5]} 21... Ke8 {[%clk 0:00:58.4]} 22. Bd2 {[%clk 0:01:36.4]}
22... g6 {[%clk 0:00:54.5]} 23. Rf1 {[%clk 0:01:36.5]} 23... Qd8 {[%clk
0:00:54.2]} 24. Be1 {[%clk 0:01:28.9]} 24... Kd7 {[%clk 0:00:51.1]} 25. Ng5
{[%clk 0:01:29.1]} 25... Qf8 {[%clk 0:00:42.4]} 26. Qf3 {[%clk 0:01:29]} 26...
Kc7 {[%clk 0:00:23.5]} 27. Qg4 {[%clk 0:01:27.3]} 27... Kb7 {[%clk 0:00:17.6]}
28. Bxh4 {[%clk 0:01:26.4]} 28... Rc7 {[%clk 0:00:16.9]} 29. Rf3 {[%clk
0:01:25.1]} 29... Na5 {[%clk 0:00:15.6]} 30. Rf2 {[%clk 0:01:06.8]} 30... Nb3
{[%clk 0:00:14.6]} 31. Rb1 {[%clk 0:01:06.2]} 31... Na5 {[%clk 0:00:14.6]} 32.
Nf3 {[%clk 0:01:05.7]} 32... Nb3 {[%clk 0:00:11.2]} 33. Bxe7 {[%clk 0:01:05.5]}
33... Qxe7 {[%clk 0:00:11.3]} 34. Rbf1 {[%clk 0:01:05.9]} 34... Na5 {[%clk
0:00:10]} 35. Ng5 {[%clk 0:01:06.2]} 35... Nb3 {[%clk 0:00:09.6]} 36. Qf3 {[%clk
0:01:06.2]} 36... Na5 {[%clk 0:00:09.2]} 37. g4 {[%clk 0:01:06.7]} 37... Nb3
{[%clk 0:00:08.6]} 38. Qg3 {[%clk 0:01:06.8]} 38... Rg8 {[%clk 0:00:06.7]} 39.
h4 {[%clk 0:01:06.8]} 39... Qe8 {[%clk 0:00:03.5]} 40. f5 {[%clk 0:01:07]} 40...
gxf5 {[%clk 0:00:04.4]} 41. gxf5 {[%clk 0:01:07.4]} 41... Rc6 {[%clk 0:00:04]}
42. fxe6 {[%clk 0:01:07.5]} 42... fxe6 {[%clk 0:00:04]} 43. Rf7+ {[%clk
0:01:08.1]} 43... Ka6 {[%clk 0:00:04.3]} 44. R1f2 {[%clk 0:01:07]} 44... Nc1
{[%clk 0:00:04.1]} 45. Qg2 {[%clk 0:00:56.3]} 45... Nd3 {[%clk 0:00:04.3]} 46.
R2f6 {[%clk 0:00:56.9]} 46... Rh8 {[%clk 0:00:03.2]} 47. Nxe6 {[%clk 0:00:46.8]}
47... Rg8 {[%clk 0:00:01.4]} 48. Ng5 {[%clk 0:00:43.7]} 48... Rxf6 {[%clk
0:00:01.1]} 49. Rxf6+ {[%clk 0:00:44.6]} 1-0